Cogmind - Beta 13 @@@ ROGUE MODE // 2024.04.11 @ 21:03:46 Player: sick0r Result: Destroyed by SY-MJV(R) with Subdweller Machine Gun Performance ------------- Evolutions (0) 0 Regions Visited (2) 400 Robots Destroyed (20) 100 Value Destroyed (624) 624 Prototype IDs (3) 60 Alien Tech Used (0) 0 Bonus (0) 0 TOTAL SCORE: 1184 Bonus ------- None Cogmind --------- Core Integrity 0/250 Matter 183/300 Energy 257/265 System Corruption 5% Temperature Cool (0) Movement Rolling (107) Ox1 Location -10/Subcaves Parts ------- > --- POWER (1) -------- Improved Ion Engine > --- PROPULSION (2) --- Wheel Subdweller Monowheel > --- UTILITY (2) ------ Large Storage Unit > --- WEAPON (2) ------- Grenade Launcher Grenade Launcher > --- INVENTORY (15) --- Improved Ion Engine Light Treads Improved Heat Sink High-capacity Matter Pod (51) Signal Interpreter Makeshift Thermal Plating Heavy EM Pulse Gun Particle Cannon Particle Cannon Peak State ------------ > --- POWER ------------ Improved Ion Engine > --- PROPULSION ------- Light Treads Light Treads > --- UTILITY ---------- Large Storage Unit Hacking Suite > --- WEAPON ----------- Particle Cannon Particle Cannon > --- INVENTORY -------- Improved Ion Engine Wheel Improved Heat Sink High-capacity Matter Pod Signal Interpreter Heavy EM Pulse Gun Spread Laser Light Assault Rifle Grenade Launcher Grenade Launcher Grenade Launcher [Rating: 13] Favorites ----------- Power Light Ion Engine Engine Light Ion Engine Propulsion Wheel Treads Light Treads Leg Aluminum Leg Wheel Wheel Utility Small Storage Unit Storage Small Storage Unit Hackware Hacking Suite Protection Light Armor Plating Weapon Light Assault Rifle Energy Gun Small Laser Energy Cannon Particle Cannon Ballistic Gun Light Assault Rifle Launcher Grenade Launcher Build | -11 -10 -10 ------- Run | Yrd Mat Sub Slots Evolved . | . . . Power . | . . . Propulsion . | . . . Utility . | . . . Weapon . | . . . Parts Attached 32 | 10 16 6 Power 5 | 2 3 . Engine 5 | 2 3 . Core . | . . . Reactor . | . . . Propulsion 10 | 5 3 2 Treads 4 | 1 3 . Leg 2 | 2 . . Wheel 4 | 2 . 2 Hover . | . . . Flight . | . . . Utility 5 | 1 4 . Device . | . . . Storage 3 | 1 2 . Processor . | . . . Hackware 1 | . 1 . Protection 1 | . 1 . Artifact . | . . . Weapon 12 | 2 6 4 Energy Gun 2 | 1 1 . Energy Cannon 3 | . 3 . Ballistic Gun 3 | 1 1 1 Ballistic Cannon . | . . . Launcher 4 | . 1 3 Special Weapon . | . . . Impact Weapon . | . . . Slashing Weapon . | . . . Piercing Weapon . | . . . Special Melee Weapon . | . . . Unidentified Prototypes . | . . . Parts Lost 7 | 1 2 4 Power 1 | 1 . . Propulsion 1 | . . 1 Utility 2 | . 1 1 Weapon 3 | . 1 2 Highest Loss Streak 2 | 1 1 2 To Critical Strikes . | . . . Average Slot Usage (%) 98 | . 98 96 Engine 14 | . 14 14 Treads 21 | . 21 22 Leg 5 | . 6 . Storage 14 | . 14 14 Hackware 5 | . 5 14 Protection 7 | . 7 . Energy Gun 6 | . 6 . Energy Cannon 10 | . 9 18 Ballistic Gun 9 | . 9 . Launcher 1 | . 1 8 Naked Turns . | . . . Heaviest Build 35 | 10 35 35 Greatest Support 40 | 26 40 40 Greatest Overweight (x) 1 | . 1 1 Average Overweight (x) . | . . . Largest Inventory Capacity 15 | 8 15 15 Average Capacity 9 | 7 13 15 Most Carried 14 | 8 14 11 Average Carried 7 | 7 9 10 Final Capacity 15 | 8 15 15 Final Carried 9 | 5 9 9 Class Distribution -------------------- 100% | Mutant Dominant Class ---------------- Mutant | -10/Materials Mutant | -10/Subcaves Resources | -11 -10 -10 ----------- Run | Yrd Mat Sub Matter Collected 911 | 323 476 112 Remotely . | . . . Salvage Created 569 | 19 428 122 Parts 41 | . 36 5 Haulers Intercepted . | . . . Recyclers Shooed 1 | . 1 . Parts Field Recycled . | . . . Retrieved Matter . | . . . Parts Self-Destructed 8 | . . 8 Prevented . | . . . Kills | -11 -10 -10 ------- Run | Yrd Mat Sub Combat Hostiles Destroyed 17 | 2 12 3 Guns 11 | 2 9 . Cannons 3 | . 2 1 AOE 3 | . 1 2 Classes Destroyed 8 | 2 4 2 Operator 1 | . 1 . Watcher 3 | . 3 . Swarmer 3 | . 3 . Grunt 9 | . 9 . Sentry 1 | . . 1 Demolisher 1 | 1 . . Subdweller 2 | . . 2 Assembled 1 | 1 . . Best Kill Streak 3 | 1 3 2 Combat Bots Only 3 | 1 3 2 Max Kills in Single Turn 1 | 1 1 1 Gunslinging . | . . . Exploded 1 | . 1 1 Melee . | . . . Uniques/NPCs Destroyed . | . . . Combat | -11 -10 -10 -------- Run | Yrd Mat Sub Hostile Shots Fired 109 | 22 64 23 Missed 27 | 2 15 10 Damage Taken 1418 | 329 654 435 Core 271 | 77 60 134 Absorbed by Shields . | . . . Regen/Repaired (Parts) 135 | . 135 . Core Remaining (%) 69 | 69 . . Volleys Fired 90 | 15 64 11 Largest 2 | 2 2 2 Hottest 136 | 60 88 136 Shots Fired 172 | 31 125 16 Gun 145 | 31 114 . Cannon 14 | . 6 8 Launcher 13 | . 5 8 Special . | . . . Kinetic 78 | 16 62 . Thermal 81 | 15 58 8 Explosive 13 | . 5 8 Electromagnetic . | . . . Robot Hit Streak 11 | 5 9 11 Robot Miss Streak 5 | 3 5 1 Penetration Max . | . . . Secondary Targets 2 | . 2 . Max Gunslinging Chain 1 | . 1 . Shots Hit Robots 114 | 19 82 13 Core Hits 58 | 9 43 6 Critical Kills . | . . . Critical Parts Destroyed . | . . . Critical Strikes . | . . . Melee Attacks . | . . . Impact . | . . . Slashing . | . . . Piercing . | . . . Sneak Attacks . | . . . Combat Hostiles . | . . . Follow-up Attacks . | . . . Damage Inflicted 1635 | 179 982 474 Guns 924 | 179 745 . Cannons 205 | . 83 122 Explosions 506 | . 154 352 Melee . | . . . Ramming . | . . . Kinetic 392 | 78 314 . Thermal 737 | 101 514 122 Explosive 506 | . 154 352 Electromagnetic . | . . . Impact . | . . . Slashing . | . . . Piercing . | . . . Highest Corruption 5 | 5 5 5 Average Corruption 5 | 5 5 5 Corruption Purged . | . . . Corruption Blocked . | . . . Effects 104 | 47 50 7 Message Errors 18 | 8 8 2 Matter Fused 33 | 16 16 1 Heat Flow Errors 12 | 6 5 1 Energy Discharges 12 | 7 5 . Parts Rejected 1 | . 1 . Parts Fused 2 | 1 1 . Data Loss (minor) 8 | 2 5 1 Data Loss (major) 8 | 2 6 . Misfires 2 | 1 1 . Alerts 6 | 4 1 1 Weapon Failures 2 | . 1 1 Overload Shots . | . . . Overflow Damage . | . . . Projectiles . | . . . Explosions . | . . . Melee . | . . . Knockbacks . | . . . Impact . | . . . Kinetic . | . . . Secondary . | . . . Self-Inflicted Damage 193 | . 59 134 Shots 9 | . 3 6 Rammed . | . . . Targets Rammed . | . . . Kicked . | . . . Crushed . | . . . Highest Temperature 522 | 279 522 359 Average Temperature 117 | 113 120 104 Received Heat Transfer 824 | 120 327 377 Effects 10 | . 9 1 Interference 2 | . 1 1 Matter Decay 1 | . 1 . Short Circuit 1 | . 1 . Damage (major) 6 | . 6 . Siege Activations . | . . . Robots Corrupted . | . . . Combat Hostiles . | . . . Parts Fried . | . . . Impact Corruptions . | . . . Robots Melted . | . . . Combat Hostiles . | . . . Parts Melted 1 | . . 1 Heat Transferred 1420 | 225 973 222 Parts Sabotaged . | . . . Parts Stolen . | . . . Parts Stripped . | . . . Power Chain Reactions . | . . . Alert | -11 -10 -10 ------- Run | Yrd Mat Sub Peak Influence 207 | 35 207 . Initial . | . . . Average 25 | 2 83 . Maximum Alert Level 1 | . 1 . Low Security (%) 99 | 100 99 . Level 1 . | . . . Level 2 . | . . . Level 3 . | . . . Level 4 . | . . . Level 5 . | . . . High Security . | . . . Max Security . | . . . Squads Dispatched 2 | . 2 . Investigation 1 | . 1 . Extermination . | . . . Reinforcement 1 | . 1 . Assault . | . . . Garrison . | . . . Intercept . | . . . Searches Triggered . | . . . Construction Impeded . | . . . Haulers Reinforced . | . . . Active Scanning Responses . | . . . Cargo Convoy Interrupts . | . . . Stealth | -11 -10 -10 --------- Run | Yrd Mat Sub Distress Signals 1 | . 1 . Communications Jammed . | . . . Distress Signals . | . . . Times Spotted 37 | 13 19 5 Peak Tracking Total 19 | 19 3 2 Tactical Retreats 3 | 1 2 . Traps | -11 -10 -10 ------- Run | Yrd Mat Sub Traps Triggered 1 | . 1 . Indirectly . | . . . Trap Hack Attempts . | . . . Triggered . | . . . Disarmed . | . . . Reprogrammed . | . . . Reused . | . . . Traps Extracted . | . . . Installed . | . . . Triggered . | . . . Machines | -11 -10 -10 ---------- Run | Yrd Mat Sub Machines Disabled 2 | . 2 . Max in Single Turn 1 | . 1 . Machines Repaired . | . . . Machines Dismantled . | . . . Machines Sabotaged . | . . . Overloaded Fab Kills . | . . . Hacking | -11 -10 -10 --------- Run | Yrd Mat Sub Machines Accessed 5 | . 5 . Terminals 4 | . 4 . Fabricators . | . . . Repair Stations 1 | . 1 . Recycling Units . | . . . Scanalyzers . | . . . Garrison Access . | . . . Total Hacks 18 | . 18 . Successful 10 | . 10 . Failed 8 | . 8 . Catastrophic . | . . . Database Lockouts . | . . . Manual . | . . . Terminals 12 | . 12 . Fabricators . | . . . Repair Stations 6 | . 6 . Recycling Units . | . . . Scanalyzers . | . . . Garrison Access . | . . . Terminal Hacks 5 | . 5 . Prototype ID Bank 2 | . 2 . Locate Traps 1 | . 1 . Reinforcement Status 1 | . 1 . Zone Layout 1 | . 1 . Fabricator Hacks . | . . . Repair Station Hacks 5 | . 5 . Scan Component 3 | . 3 . Repair 2 | . 2 . Recycling Unit Hacks . | . . . Scanalyzer . | . . . Garrison Access Hacks . | . . . Unauthorized Hacks . | . . . Terminals . | . . . Fabricators . | . . . Repair Stations . | . . . Recycling Units . | . . . Scanalyzers . | . . . Garrison Access . | . . . Data Cores Recovered . | . . . Used . | . . . Hacking Detections 2 | . 2 . Full Trace Events 1 | . 1 . Feedback Events . | . . . Feedback Blocked . | . . . Robot Schematics Acquired . | . . . Robots Built . | . . . Authchips . | . . . Time . | . . . Total Robot Build Rating . | . . . Part Schematics Acquired . | . . . Parts Built . | . . . Authchips . | . . . Time . | . . . Total Part Build Rating . | . . . Parts Repaired 2 | . 2 . Time 52 | . 52 . Parts Recycled . | . . . Recycled Matter . | . . . Retrieved Matter . | . . . Retrieved Components . | . . . Parts Scanalyzed . | . . . Part Schematics Acquired . | . . . Parts Damaged . | . . . Bothacking | -11 -10 -10 ------------ Run | Yrd Mat Sub Used RIF Installer . | . . . Robots Hacked . | . . . Non-combat . | . . . Combat . | . . . Robot Hacks Applied . | . . . Relay Couplers Released . | . . . Fabnet Peak Effective % . | . . . Robots Rewired . | . . . Allies Hacked . | . . . Hacks Repelled . | . . . Allies | -11 -10 -10 -------- Run | Yrd Mat Sub Total Allies . | . . . Largest Group . | . . . Highest-Rated Group . | . . . Highest-Rated Ally . | . . . Total Orders . | . . . Ally Attacks . | . . . Total Damage . | . . . Kills . | . . . Allies Corrupted . | . . . Allies Melted . | . . . Intel | -11 -10 -10 ------- Run | Yrd Mat Sub Robot Analysis Total . | . . . Derelict Logs Recovered . | . . . Drone Launches . | . . . Drone Recoveries . | . . . Exploration | -11 -10 -10 ------------- Run | Yrd Mat Sub Turns Passed 7086 | 5008 1927 151 Spaces Moved 1914 | 877 966 71 Core 2 | 2 . . Treads 815 | . 754 61 Legs 213 | 1 212 . Wheels 884 | 874 . 10 Hover . | . . . Flight . | . . . Fastest Speed 50 | 50 120 107 Average Speed 125 | 89 154 161 Slowest Speed 240 | 120 190 240 Overloaded Moves . | . . . Propulsion Burnouts . | . . . Robots Hopped . | . . . Cave-ins Triggered . | . . . Exploration Rate (%) 63 | 81 99 9 Regions Visited 2 Branch Regions 1 Pre-discovered Areas . | . . . Known Exits Taken . | . . . Unknown Exits Taken 2 | 1 1 . Scrap Searched 1 | . . 1 Spaces Dug . | . . . Terrain Destroyed 54 | . 28 26 Melee . | . . . Projectile . | . . . AOE 54 | . 28 26 Terrain Rammed . | . . . Walls Destroyed . | . . . Machines Disabled . | . . . Actions | -11 -10 -10 --------- Run | Yrd Mat Sub Total 6445 | 5068 1286 91 Wait 4364 | 4154 210 . Move 1912 | 876 965 71 Hop . | . . . Pick Up 34 | 12 19 3 Fast Attach 2 | 1 1 . Attach 14 | 7 4 3 Detach . | . . . Swap 16 | 2 11 3 Drop 13 | 1 12 . Fire 90 | 15 64 11 Melee . | . . . Ram . | . . . Kick . | . . . Crush . | . . . Escape Stasis . | . . . Rewire . | . . . Trap . | . . . Miscellaneous . | . . . Route ------- -11/Scrapyard -10/Materials (discovered 5 exits: [*Mat x3] / [*Min] / [*Sub]) -10/Subcaves History --------- Turn | Location | Event 21 | -11/Scrapyard | Discovered new exit (range 15) 2912 | -11/Scrapyard | Assembled infested the area 5009 | -11/Scrapyard | Entered Materials 5010 | -10/Materials | Build established: Mutant 5312 | -10/Materials | Core integrity fell below 50% 5516 | -10/Materials | Discovered new exit (range 9) 5572 | -10/Materials | Discovered new exit (range 15) 5647 | -10/Materials | Discovered new exit (range 10) 5917 | -10/Materials | Discovered new exit (range 4) 6025 | -10/Materials | Discovered new exit (range 8) 6508 | -10/Materials | Repaired Lgt. Treads 6834 | -10/Materials | Repaired Grenade Launcher 6936 | -10/Materials | Entered Subcaves 7043 | -10/Subcaves | Core integrity fell below 20% 7087 | -10/Subcaves | Destroyed by SY-MJV(R) with Subdweller Machine Gun Last Messages --------------- Acquired 55 matter. Critical hit (Meltdown: +290). Overheating: System interference. Sub. Machine Gun temporarily disabled. Lgt. Treads destroyed. System corrupted: Matter fused (-7). LL-FQH(R) destroyed. System corrupted: Grenade Launcher failed to launch. Subatomizers dissect the Sub. Monowheel. Sub. Machine Gun destroyed. Sub. Power Source melted. C2-MKS(R) destroyed. Acquired 13 matter. L|OOYZT P N KPQLELX2:7C<8